fUSD/lending_fUSD_20241128
["ID","MTS","AMOUNT","RATE_DAILY","PERIOD"]
[343669160,1732818642949,-501.28741361,9.999e-05,2]
[343669161,1732818642959,-500.0,9.999e-05,2]
[343669162,1732818642968,-394.68931122,9.999e-05,2]
[343669163,1732818642980,-105.31068878,9.999e-05,2]
[343669164,1732818642990,-500.0,9.999e-05,2]
[343669166,1732818643000,-500.0,9.999e-05,2]
[343669168,1732818643008,-500.0,9.999e-05,2]
[343669169,1732818643018,-466.51,9.999e-05,2]
[343669171,1732818643028,-509.51343428,9.999e-05,2]
[343669173,1732818643038,-500.0,9.999e-05,2]
[343669175,1732818643048,-255.06,9.999e-05,2]
[343669177,1732818643057,-500.0,9.999e-05,2]
[343669180,1732818643067,-500.0,9.999e-05,2]
[343669182,1732818643076,-425.25083911,9.999e-05,2]
[343669184,1732818643086,-500.0,9.999e-05,2]
[343669187,1732818643109,-500.0,9.999e-05,2]
[343669189,1732818643119,-500.0,9.999e-05,2]
[343669191,1732818643129,-500.0,9.999e-05,2]
[343669192,1732818643139,-500.0,9.999e-05,2]
[343669193,1732818643149,-500.0,9.999e-05,2]
[343669194,1732818643158,-500.0,9.999e-05,2]
[343669195,1732818643168,-500.0,9.999e-05,2]
[343669196,1732818643177,-500.0,9.999e-05,2]
[343669197,1732818643186,-500.0,9.999e-05,2]
[343669198,1732818643196,-500.0,9.999e-05,2]
[343669199,1732818643205,-500.0,9.999e-05,2]
[343669200,1732818643214,-500.0,9.999e-05,2]
[343669201,1732818643223,-382.36,9.999e-05,2]
[343669202,1732818643233,-518.63580853,9.999e-05,2]
[343669203,1732818643242,-500.0,9.999e-05,2]
[343669204,1732818643252,-500.0,9.999e-05,2]
[343669205,1732818643265,-500.0,9.999e-05,2]
[343669206,1732818643275,-500.0,9.999e-05,2]
[343669207,1732818643284,-500.0,9.999e-05,2]
[343669208,1732818643293,-386.13,9.999e-05,2]
[343669209,1732818643303,-44028.54387298,9.999e-05,2]
[343669210,1732818643316,-2595.17818465,9.999e-05,2]
[343669211,1732818643326,-11783.38442856,0.0001,2]
[343669212,1732818643352,-47133.47421442,0.0001,2]
[343669213,1732818643376,-14116.28158288,0.0001,2]
[343669214,1732818643388,-566.84138598,0.0001,2]
[343669216,1732818643399,-7618.48,0.0001,2]
[343669218,1732818643410,-895.65000001,0.0001,2]
[343669219,1732818643422,-1399.79399091,0.0001,2]
[343669220,1732818643433,-398.62975953,0.0001,2]
[343669222,1732818643448,-3593.47834983,0.0001,2]
[343669224,1732818643460,-1746.3324078,0.0001,2]
[343669226,1732818643472,-4470.03465609,0.0001,2]
[343669228,1732818643483,-11148.5019612,0.0001,2]
[343669230,1732818643495,-422.90000105,0.0001,2]
[343669236,1732818645389,-2137.90186013,0.0001,2]
[343669237,1732818645479,-409.19955177,0.0001,2]
[343669238,1732818645490,-3578.7,0.0001,2]
[343669239,1732818645501,-625.3,0.0001,2]
[343669240,1732818645665,-300.0,0.0001,2]
[343669241,1732818645752,-1802.4488167,0.0001,2]
[343669279,1732819831892,-396.54622844,8.219e-05,2]
[343669280,1732819832195,-325.85967891,8.219e-05,2]
[343669522,1732819837999,-632.87409265,8.219e-05,2]
[343669523,1732819838009,-3924.3279,9.038e-05,2]
[343669524,1732819838019,-500.0,9.071e-05,2]
[343669525,1732819838028,-300.0,9.137e-05,2]
[343669526,1732819838037,-4406.19800735,9.138e-05,2]
[343669527,1732819838048,-420.95210827,9.138e-05,2]
[343669528,1732819838128,-1477.47,9.138e-05,2]
[343669529,1732819838139,-1592.5,9.138e-05,2]
[343669540,1732819839959,-753.78105128,9.138e-05,2]
[343669541,1732819839981,-508.17271927,9.138e-05,2]
[343669542,1732819840003,-358.58999999,9.138e-05,2]
[343669543,1732819840164,-78.17951215,9.138e-05,2]
[343669552,1732819842770,-250.0,9.071e-05,2]
[343669553,1732819842779,-14304.15660169,9.138e-05,2]
[343669554,1732819842789,-170.09,9.158e-05,2]
[343669555,1732819842799,-208.89,9.343e-05,2]
[343669556,1732819842808,-158.91,9.589e-05,2]
[343669557,1732819842818,-150.0,9.644e-05,2]
[343669558,1732819842827,-1000.0,9.745e-05,2]
[343669559,1732819842836,-1560.3442,9.799e-05,2]
[343669560,1732819842846,-700.02,9.9e-05,2]
[343669561,1732819842855,-3007.58919831,9.9e-05,2]
[343669562,1732819842886,-3697.78306216,9.9e-05,2]
[343669563,1732819843007,-692.06819763,9.9e-05,2]
[343669564,1732819843042,-10340.2529419,9.9e-05,2]
[343669565,1732819843051,-200.0,9.986e-05,2]
[343669566,1732819843061,-961.972,9.989e-05,2]
[343669567,1732819843070,-150.0,9.997e-05,2]
[343669568,1732819843079,-500.0,9.998e-05,2]
[343669569,1732819843088,-500.0,9.998e-05,2]
[343669570,1732819843098,-500.0,9.998e-05,2]
[343669571,1732819843107,-288.37,9.998e-05,2]
[343669572,1732819843116,-500.0,9.998e-05,2]
[343669573,1732819843125,-500.0,9.998e-05,2]
[343669574,1732819843134,-500.0,9.998e-05,2]
[343669575,1732819843143,-500.0,9.998e-05,2]
[343669576,1732819843151,-500.0,9.998e-05,2]
[343669578,1732819843161,-500.0,9.998e-05,2]
[343669579,1732819843170,-500.0,9.998e-05,2]
[343669581,1732819843179,-500.0,9.998e-05,2]
[343669582,1732819843190,-500.0,9.998e-05,2]
[343669583,1732819843199,-509.51343428,9.998e-05,2]
[343669584,1732819843209,-500.0,9.998e-05,2]
[343669585,1732819843218,-500.0,9.998e-05,2]
[343669586,1732819843232,-500.0,9.998e-05,2]
[343669587,1732819843249,-500.0,9.998e-05,2]
[343669588,1732819843259,-500.0,9.998e-05,2]
[343669589,1732819843268,-500.0,9.998e-05,2]
[343669590,1732819843278,-500.0,9.998e-05,2]
[343669591,1732819843288,-500.0,9.998e-05,2]
[343669592,1732819843298,-564.83300114,9.998e-05,2]
[343669598,1732819845670,-72.20699886,9.998e-05,2]
[343669600,1732819845681,-500.0,9.998e-05,2]
[343669601,1732819845691,-14.20841813,9.998e-05,2]
[343669602,1732819845946,-485.79158187,9.998e-05,2]
[343669603,1732819845956,-255.65994129,9.998e-05,2]
[343669604,1732819845968,-245.62747232,9.998e-05,2]
[343669605,1732819845977,-500.0,9.998e-05,2]
[343669606,1732819845986,-500.0,9.998e-05,2]
[343669607,1732819845995,-500.0,9.998e-05,2]
[343669608,1732819846004,-500.0,9.998e-05,2]
[343669609,1732819846013,-500.0,9.998e-05,2]
[343669610,1732819846022,-500.0,9.998e-05,2]
[343669611,1732819846030,-500.0,9.998e-05,2]
[343669612,1732819846040,-500.0,9.998e-05,2]
[343669613,1732819846049,-408.11142768,9.998e-05,2]
[343669614,1732819846060,-91.88857232,9.998e-05,2]
[343669616,1732819846069,-403.17124462,9.998e-05,2]
[343669618,1732819846078,-246.14147705,9.998e-05,2]
[343669624,1732820175908,-172.42,0.00016658,30]
[343669625,1732820175950,-172.42,0.00019242,30]
[343669628,1732820403219,19270.97018261,0.00022122,120]
[343669629,1732820454030,155.17,0.00016658,30]
[343669630,1732820454421,155.17,0.00019242,30]
[343669651,1732821031995,-1150.0,8.219e-05,2]
[343669652,1732821032007,-137.51,8.219e-05,2]
[343669653,1732821032017,-1494.94000001,8.922e-05,2]
[343669654,1732821032055,-509.22801043,8.922e-05,2]
[343669656,1732821032405,-10153.25198956,8.922e-05,2]
[343669658,1732821032416,-195.28,8.952e-05,2]
[343669660,1732821032425,-1000.0,8.952e-05,2]
[343669661,1732821032434,-250.0,8.975e-05,2]
[343669663,1732821032444,-220.98,9.071e-05,2]
[343669664,1732821032453,-150.0,9.742e-05,2]
[343669665,1732821032464,-150.0,9.77e-05,2]
[343669666,1732821032474,-150.0,9.776e-05,2]
[343669667,1732821032484,-150.0,9.79e-05,2]
[343669668,1732821032494,-150.0,9.791e-05,2]
[343669669,1732821032503,-150.0,9.808e-05,2]
[343669670,1732821032511,-150.0,9.817e-05,2]
[343669671,1732821032520,-150.0,9.859e-05,2]
[343669672,1732821032529,-150.0,9.864e-05,2]
[343669673,1732821032539,-150.0,9.876e-05,2]
[343669674,1732821032549,-150.0,9.876e-05,2]
[343669675,1732821032558,-2941.752,9.899e-05,2]
[343669676,1732821032568,-1093.28459447,9.9e-05,2]
[343669677,1732821032597,-406.71540553,9.9e-05,2]
[343669678,1732821032606,-278.03613152,9.921e-05,2]
[343669679,1732821032617,-150.0,9.935e-05,2]
[343669680,1732821032627,-150.0,9.974e-05,2]
[343669681,1732821032636,-150.0,9.979e-05,2]
[343669682,1732821032646,-150.0,9.983e-05,2]
[343669683,1732821032656,-769.578,9.998e-05,2]
[343669684,1732821032665,-150.0,9.998e-05,2]
[343669685,1732821032674,-7364.84289769,9.999e-05,2]
[343669692,1732821038184,-743.65999995,9.999e-05,2]
[343669693,1732821038195,-415.94780396,9.999e-05,2]
[343669694,1732821038207,-2267.20000007,9.999e-05,2]
[343669695,1732821038218,-739.3,9.999e-05,2]
[343669696,1732821038230,-501.43846,9.999e-05,2]
[343669697,1732821038379,-1317.46190867,9.999e-05,2]
[343669698,1732821038391,-500.0,9.999e-05,2]
[343669699,1732821038402,-1406.17517403,9.999e-05,2]
[343669700,1732821038413,-3272.3,9.999e-05,2]
[343669855,1732821040022,-2588.61854829,9.999e-05,2]
[343669857,1732821040035,-515.30962188,9.999e-05,2]
[343669861,1732821040067,-26548.53909867,9.999e-05,2]
[343669863,1732821040077,-2956.92783065,9.999e-05,2]
[343669889,1732821040114,-2843.07216935,9.999e-05,2]
[343669891,1732821040321,-2000.0,9.999e-05,2]
[343669893,1732821040330,-856.23512147,9.999e-05,2]
[343669915,1732821043015,-1143.76487853,9.999e-05,2]
[343669916,1732821043025,-422.90000105,9.999e-05,2]
[343669917,1732821043035,-500.0,9.999e-05,2]
[343669918,1732821043045,-535.89203447,9.999e-05,2]
[343669919,1732821043055,-382.99972755,9.999e-05,2]
[343669920,1732821043067,-117.00027245,9.999e-05,2]
[343669921,1732821043076,-500.0,9.999e-05,2]
[343669922,1732821043085,-500.0,9.999e-05,2]
[343669923,1732821043094,-279.3274134,9.999e-05,2]
[343669924,1732821043105,-220.6725866,9.999e-05,2]
[343669925,1732821043115,-500.0,9.999e-05,2]
[343669926,1732821043127,-405.78415835,9.999e-05,2]
[343669932,1732821046133,-507.6,9.999e-05,2]
[343669933,1732821046143,-94.21584165,9.999e-05,2]
[343669934,1732821046152,-386.13,9.999e-05,2]
[343669935,1732821046162,-500.0,9.999e-05,2]
[343669936,1732821046171,-363.92,9.999e-05,2]
[343669937,1732821046181,-500.0,9.999e-05,2]
[343669938,1732821046190,-178.92,9.999e-05,2]
[343669939,1732821046199,-500.0,9.999e-05,2]
[343669940,1732821046208,-500.0,9.999e-05,2]
[343669941,1732821046217,-500.0,9.999e-05,2]
[343669942,1732821046227,-500.0,9.999e-05,2]
[343669943,1732821046236,-500.0,9.999e-05,2]
[343669944,1732821046246,-503.64534674,9.999e-05,2]
[343669945,1732821046255,-512.50775452,9.999e-05,2]
[343669946,1732821046265,-500.0,9.999e-05,2]
[343669947,1732821046275,-503.68951107,9.999e-05,2]
[343669948,1732821046284,-474.90720361,9.999e-05,2]
[343669949,1732821046294,-500.0,9.999e-05,2]
[343669950,1732821046303,-500.0,9.999e-05,2]
[343669951,1732821046313,-500.0,9.999e-05,2]
[343669952,1732821046322,-509.71092367,9.999e-05,2]
[343669953,1732821046332,-500.0,9.999e-05,2]
[343669954,1732821046342,-517.07845579,9.999e-05,2]
[343669955,1732821046351,-503.26571873,9.999e-05,2]
[343669956,1732821046360,-500.0,9.999e-05,2]
[343669957,1732821046369,-500.0,9.999e-05,2]
[343669958,1732821046380,-500.0,9.999e-05,2]
[343669959,1732821046390,-500.0,9.999e-05,2]
[343669960,1732821046400,-500.0,9.999e-05,2]
[343669961,1732821046409,-359.14234813,9.999e-05,2]
[343669962,1732821046419,-500.0,9.999e-05,2]
[343669963,1732821046428,-500.0,9.999e-05,2]
[343669964,1732821046438,-636.3,9.999e-05,2]
[343669965,1732821046447,-500.0,9.999e-05,2]
[343669966,1732821046456,-500.0,9.999e-05,2]
[343669967,1732821046465,-502.4832147,9.999e-05,2]
[343669968,1732821046475,-500.0,9.999e-05,2]
[343669969,1732821046484,-502.47469551,9.999e-05,2]
[343669970,1732821046493,-500.0,9.999e-05,2]
[343669971,1732821046502,-500.0,9.999e-05,2]
[343669972,1732821046512,-500.0,9.999e-05,2]
[343669973,1732821046521,-500.0,9.999e-05,2]
[343669974,1732821046531,-497.42879258,9.999e-05,2]
[343669975,1732821046540,-500.0,9.999e-05,2]
[343669976,1732821046550,-500.0,9.999e-05,2]
[343669977,1732821046559,-500.0,9.999e-05,2]
[343669978,1732821046569,-500.0,9.999e-05,2]
[343669979,1732821046579,-500.0,9.999e-05,2]
[343669980,1732821046588,-500.0,9.999e-05,2]
[343669981,1732821046598,-500.0,9.999e-05,2]
[343669982,1732821046607,-646.41697955,9.999e-05,2]
[343669983,1732821046617,-500.0,9.999e-05,2]
[343669984,1732821046627,-500.0,9.999e-05,2]
[343669985,1732821046637,-500.0,9.999e-05,2]
[343669986,1732821046646,-313.56105623,9.999e-05,2]
[343669987,1732821046656,-502.08662632,9.999e-05,2]
[343669988,1732821046665,-500.0,9.999e-05,2]
[343669989,1732821046675,-507.95,9.999e-05,2]
[343669990,1732821046684,-672.12,9.999e-05,2]
[343669991,1732821046694,-672.12,9.999e-05,2]
[343669992,1732821046704,-311.95764527,9.999e-05,2]
[343669993,1732821046720,-672.12,9.999e-05,2]
[343669994,1732821046730,-672.12,9.999e-05,2]
[343669995,1732821046739,-525.1630549,9.999e-05,2]
[343669996,1732821046749,-672.12,9.999e-05,2]
[343669997,1732821046759,-500.0,9.999e-05,2]
[343669998,1732821046768,-672.12,9.999e-05,2]
[343669999,1732821046778,-500.0,9.999e-05,2]
[343670000,1732821046787,-672.12,9.999e-05,2]
[343670001,1732821046796,-672.12,9.999e-05,2]
[343670002,1732821046806,-672.12,9.999e-05,2]
[343670003,1732821046815,-672.12,9.999e-05,2]
[343670004,1732821046826,-672.12,9.999e-05,2]
[343670005,1732821046836,-672.12,9.999e-05,2]
[343670006,1732821046851,-500.0,9.999e-05,2]
[343670007,1732821046861,-672.12,9.999e-05,2]
[343670008,1732821046871,-672.12,9.999e-05,2]
[343670009,1732821046881,-672.12,9.999e-05,2]
[343670010,1732821046890,-672.12,9.999e-05,2]
[343670011,1732821046900,-500.0,9.999e-05,2]
[343670012,1732821046909,-672.12,9.999e-05,2]
[343670013,1732821046918,-672.12,9.999e-05,2]
[343670014,1732821046928,-577.58,9.999e-05,2]
[343670015,1732821046938,-672.12,9.999e-05,2]
[343670016,1732821046949,-672.12,9.999e-05,2]
[343670017,1732821046959,-672.12,9.999e-05,2]
[343670018,1732821046968,-672.12,9.999e-05,2]
[343670019,1732821046977,-672.12,9.999e-05,2]
[343670020,1732821046989,-672.23324353,9.999e-05,2]
[343670021,1732821046999,-500.0,9.999e-05,2]
[343670022,1732821047009,-218.40863797,9.999e-05,2]
[343670023,1732821047019,-500.0,9.999e-05,2]
[343670024,1732821047029,-500.0,9.999e-05,2]
[343670025,1732821047039,-393.26452297,9.999e-05,2]
[343670026,1732821047048,-519.5736283,9.999e-05,2]
[343670027,1732821047058,-500.0,9.999e-05,2]
[343670028,1732821047068,-500.0,9.999e-05,2]
[343670029,1732821047078,-501.53527981,9.999e-05,2]
[343670030,1732821047087,-500.0,9.999e-05,2]
[343670031,1732821047107,-500.0,9.999e-05,2]
[343670032,1732821047117,-500.0,9.999e-05,2]
[343670033,1732821047128,-533.33554812,9.999e-05,2]
[343670034,1732821047137,-513.74997962,9.999e-05,2]
[343670035,1732821047147,-501.79328815,9.999e-05,2]
[343670036,1732821047157,-369.81425288,9.999e-05,2]
[343670037,1732821047167,-500.0,9.999e-05,2]
[343670038,1732821047176,-500.0,9.999e-05,2]
[343670039,1732821047185,-500.0,9.999e-05,2]
[343670040,1732821047195,-500.0,9.999e-05,2]
[343670041,1732821047204,-501.99132835,9.999e-05,2]
[343670042,1732821047214,-500.0,9.999e-05,2]
[343670043,1732821047224,-501.71105032,9.999e-05,2]
[343670044,1732821047233,-500.0,9.999e-05,2]
[343670045,1732821047243,-500.0,9.999e-05,2]
[343670046,1732821047252,-340.93598451,9.999e-05,2]
[343670047,1732821047261,-501.46622318,9.999e-05,2]
[343670048,1732821047271,-500.0,9.999e-05,2]
[343670049,1732821047280,-501.96344201,9.999e-05,2]
[343670050,1732821047290,-515.96226336,9.999e-05,2]
[343670051,1732821047299,-500.0,9.999e-05,2]
[343670052,1732821047308,-516.65865929,9.999e-05,2]
[343670053,1732821047318,-500.0,9.999e-05,2]
[343670054,1732821047327,-510.28533661,9.999e-05,2]
[343670055,1732821047336,-401.05727379,9.999e-05,2]
[343670056,1732821047346,-500.0,9.999e-05,2]
[343670057,1732821047355,-500.0,9.999e-05,2]
[343670058,1732821047365,-500.0,9.999e-05,2]
[343670059,1732821047376,-500.0,9.999e-05,2]
[343670060,1732821047385,-523.77014298,9.999e-05,2]
[343670061,1732821047394,-636.3561402,9.999e-05,2]
[343670062,1732821047404,-501.2339877,9.999e-05,2]
[343670063,1732821047413,-505.65,9.999e-05,2]
[343670064,1732821047423,-500.0,9.999e-05,2]
[343670065,1732821047432,-500.0,9.999e-05,2]
[343670066,1732821047442,-500.0,9.999e-05,2]
[343670067,1732821047451,-500.0,9.999e-05,2]
[343670068,1732821047460,-500.0,9.999e-05,2]
[343670069,1732821047469,-333.21031746,9.999e-05,2]
[343670070,1732821047479,-523.28580817,9.999e-05,2]
[343670071,1732821047489,-500.0,9.999e-05,2]
[343670072,1732821047499,-500.0,9.999e-05,2]
[343670073,1732821047509,-500.0,9.999e-05,2]
[343670074,1732821047519,-500.0,9.999e-05,2]
[343670075,1732821047528,-500.0,9.999e-05,2]
[343670076,1732821047538,-500.0,9.999e-05,2]
[343670077,1732821047548,-500.0,9.999e-05,2]
[343670078,1732821047558,-500.0,9.999e-05,2]
[343670079,1732821047567,-500.0,9.999e-05,2]
[343670080,1732821047577,-382.36,9.999e-05,2]
[343670081,1732821047586,-500.0,9.999e-05,2]
[343670082,1732821047597,-500.0,9.999e-05,2]
[343670083,1732821047607,-500.0,9.999e-05,2]
[343670084,1732821047616,-500.0,9.999e-05,2]
[343670085,1732821047628,-500.0,9.999e-05,2]
[343670086,1732821047637,-500.0,9.999e-05,2]
[343670087,1732821047647,-201.68500001,9.999e-05,2]
[343670088,1732821047657,-500.0,9.999e-05,2]
[343670089,1732821047667,-500.0,9.999e-05,2]
[343670090,1732821047676,-500.0,9.999e-05,2]
[343670091,1732821047686,-386.62582648,9.999e-05,2]
[343670092,1732821047695,-500.0,9.999e-05,2]
[343670093,1732821047706,-286.74934762,9.999e-05,2]
[343670094,1732821047715,-500.0,9.999e-05,2]
[343670095,1732821047725,-500.0,9.999e-05,2]
[343670096,1732821047736,-500.0,9.999e-05,2]
[343670097,1732821047745,-500.0,9.999e-05,2]
[343670098,1732821047755,-300.79,9.999e-05,2]
[343670099,1732821047765,-500.0,9.999e-05,2]
[343670100,1732821047775,-399.5475234,9.999e-05,2]
[343670101,1732821047784,-466.51,9.999e-05,2]
[343670102,1732821047793,-255.06,9.999e-05,2]
[343670103,1732821047803,-312.81369543,9.999e-05,2]
[343670104,1732821047812,-500.0,9.999e-05,2]
[343670105,1732821047821,-500.0,9.999e-05,2]
[343670106,1732821047831,-500.0,9.999e-05,2]
[343670107,1732821047841,-425.25083911,9.999e-05,2]
[343670108,1732821047851,-500.0,9.999e-05,2]
[343670109,1732821047861,-500.0,9.999e-05,2]
[343670110,1732821047871,-500.0,9.999e-05,2]
[343670111,1732821047881,-500.0,9.999e-05,2]
[343670112,1732821047890,-565.89,9.999e-05,2]
[343670113,1732821047900,-500.0,9.999e-05,2]
[343670114,1732821047910,-500.0,9.999e-05,2]
[343670115,1732821047919,-500.0,9.999e-05,2]
[343670116,1732821047929,-500.0,9.999e-05,2]
[343670117,1732821047938,-500.0,9.999e-05,2]
[343670118,1732821047948,-500.0,9.999e-05,2]
[343670119,1732821047957,-500.0,9.999e-05,2]
[343670120,1732821047967,-500.0,9.999e-05,2]
[343670121,1732821047976,-500.0,9.999e-05,2]
[343670122,1732821047986,-500.0,9.999e-05,2]
[343670123,1732821048000,-500.0,9.999e-05,2]
[343670124,1732821048010,-383.25,9.999e-05,2]
[343670125,1732821048020,-452.69,9.999e-05,2]
[343670126,1732821048029,-500.0,9.999e-05,2]
[343670127,1732821048041,-500.0,9.999e-05,2]
[343670128,1732821048050,-500.0,9.999e-05,2]
[343670129,1732821048060,-500.0,9.999e-05,2]
[343670130,1732821048072,-500.0,9.999e-05,2]
[343670131,1732821048081,-500.0,9.999e-05,2]
[343670132,1732821048091,-500.0,9.999e-05,2]
[343670133,1732821048101,-500.0,9.999e-05,2]
[343670134,1732821048110,-500.0,9.999e-05,2]
[343670135,1732821048121,-500.0,9.999e-05,2]
[343670136,1732821048134,-500.0,9.999e-05,2]
[343670137,1732821048144,-500.0,9.999e-05,2]
[343670138,1732821048154,-253.85852295,9.999e-05,2]
[343670139,1732821048164,-583.16738386,9.999e-05,2]
[343670140,1732821048174,-201.68500001,9.999e-05,2]
[343670141,1732821048184,-201.68500001,9.999e-05,2]
[343670142,1732821048194,-201.68500001,9.999e-05,2]
[343670143,1732821048204,-201.68500001,9.999e-05,2]
[343670144,1732821048214,-201.68500001,0.0001,2]
[343670145,1732821048223,-201.68500001,0.0001,2]
[343670146,1732821048234,-547816.92679452,0.0001,2]
[343670147,1732821048250,-4778.037,0.0001,2]
[343670148,1732821109771,155.17,0.00016658,30]
[343670149,1732821110019,155.17,0.00019546,30]
[343670155,1732821845700,155.17,0.00016658,30]
[343670156,1732821845916,155.17,0.00019931,30]
[343670201,1732822232379,-1223.13,8.219e-05,2]
[343670202,1732822232389,-250.0,9.37e-05,2]
[343670203,1732822232399,-176.78,9.476e-05,2]
[343670204,1732822232409,-1000.0,9.553e-05,2]
[343670205,1732822232418,-500.0,9.808e-05,2]
[343670206,1732822232428,-842.2372,9.88e-05,2]
[343670207,1732822232437,-300.0,9.899e-05,2]
[343670208,1732822232446,-474.86505,9.9e-05,2]
[343670210,1732822238277,-4525.13495,9.9e-05,2]
[343670211,1732822238287,-554.59193747,9.9e-05,2]
[343670212,1732822238352,-3002.06222061,9.9e-05,2]
[343670221,1732822240108,-443.34584192,9.9e-05,2]
[343670222,1732822240118,-150.0,9.998e-05,2]
[343670223,1732822240127,-490.43,9.998e-05,2]
[343670224,1732822240137,-502.4,9.999e-05,2]
[343670225,1732822240147,-492.91,9.999e-05,2]
[343670226,1732822240157,-495.24,9.999e-05,2]
[343670227,1732822240168,-500.0,9.999e-05,2]
[343670228,1732822240178,-615.662,9.999e-05,2]
[343670229,1732822240187,-450.0,9.999e-05,2]
[343670230,1732822240197,-500.0,9.999e-05,2]
[343670231,1732822240206,-295.21751484,9.999e-05,2]
[343670232,1732822240216,-500.0,9.999e-05,2]
[343670233,1732822240225,-500.0,9.999e-05,2]
[343670234,1732822240235,-403.866587,9.999e-05,2]
[343670235,1732822240244,-303.91763788,9.999e-05,2]
[343670236,1732822240254,-500.0,9.999e-05,2]
[343670237,1732822240263,-204.84148359,9.999e-05,2]
[343670238,1732822240273,-2187.26893477,9.999e-05,2]
[343670241,1732822243233,-521.22271339,9.999e-05,2]
[343670242,1732822243244,-530.229985,9.999e-05,2]
[343670243,1732822243256,-562.39668,9.999e-05,2]
[343670244,1732822243312,-3511.56866486,9.999e-05,2]
[343670245,1732822243323,-3009.82666596,9.999e-05,2]
[343670246,1732822243383,-415.2007538,9.999e-05,2]
[343670247,1732822243455,-778.45721202,9.999e-05,2]
[343670249,1732822243467,-925.88,9.999e-05,2]
[343670254,1732822246004,-16482.89748709,9.999e-05,2]
[343670255,1732822246188,-21756.040751,9.999e-05,2]
[343670256,1732822246198,-361593.24863698,0.0001,2]
[343670257,1732822246210,-1581.86993551,0.0001,2]
[343670259,1732822500426,155.17,0.00016658,30]
[343670263,1732823187416,155.17,0.00016658,30]
[343670280,1732823432489,-546.542,8.219e-05,2]
[343670281,1732823432547,-596.765,8.219e-05,2]
[343670283,1732823438390,-44.163,8.219e-05,2]
[343670284,1732823438400,-250.0,8.922e-05,2]
[343670285,1732823438409,-821.43292862,8.929e-05,2]
[343670297,1732823440238,-678.56707138,8.929e-05,2]
[343670298,1732823440249,-163.72,9.729e-05,2]
[343670299,1732823440259,-150.0,9.752e-05,2]
[343670300,1732823440268,-150.0,9.758e-05,2]
[343670301,1732823440278,-150.0,9.775e-05,2]
[343670302,1732823440287,-150.0,9.822e-05,2]
[343670303,1732823440298,-150.0,9.834e-05,2]
[343670304,1732823440307,-150.0,9.838e-05,2]
[343670305,1732823440317,-150.0,9.844e-05,2]
[343670306,1732823440327,-150.0,9.844e-05,2]
[343670307,1732823440336,-150.0,9.849e-05,2]
[343670308,1732823440345,-33.24938199,9.85e-05,2]
[343670330,1732823446018,-116.75061801,9.85e-05,2]
[343670332,1732823446028,-150.0,9.85e-05,2]
[343670334,1732823446038,-150.0,9.859e-05,2]
[343670336,1732823446047,-150.0,9.862e-05,2]
[343670338,1732823446057,-229.89974822,9.863e-05,2]
[343670343,1732823446102,-770.10025178,9.863e-05,2]
[343670344,1732823446111,-150.0,9.883e-05,2]
[343670345,1732823446120,-150.0,9.886e-05,2]
[343670346,1732823446129,-150.0,9.889e-05,2]
[343670347,1732823446138,-150.0,9.892e-05,2]
[343670348,1732823446147,-150.0,9.893e-05,2]
[343670349,1732823446156,-157.64316072,9.897e-05,2]
[343670350,1732823446166,-500.0,9.918e-05,2]
[343670351,1732823446175,-150.0,9.932e-05,2]
[343670353,1732823446185,-150.0,9.935e-05,2]
[343670354,1732823446194,-150.0,9.936e-05,2]
[343670356,1732823446203,-150.0,9.94e-05,2]
[343670357,1732823446213,-150.0,9.945e-05,2]
[343670358,1732823446223,-150.0,9.954e-05,2]
[343670359,1732823446231,-150.0,9.954e-05,2]
[343670360,1732823446240,-300.0,9.954e-05,2]
[343670362,1732823446250,-158.85,9.97e-05,2]
[343670364,1732823446259,-150.0,9.978e-05,2]
[343670367,1732823446268,-150.0,9.984e-05,2]
[343670370,1732823446277,-500.29,9.999e-05,2]
[343670372,1732823446286,-509.75,9.999e-05,2]
[343670374,1732823446295,-498.5,9.999e-05,2]
[343670376,1732823446304,-5800.0,9.999e-05,2]
[343670377,1732823446313,-1325.35245956,9.999e-05,2]